bitfinex/quotes_BTCUSD_20240905
["timestamp","ask_amount","ask_price","bid_price","bid_amount"]
[1725505174637,0.463886,57840.0,57839.0,0.29386407]
[1725505178327,0.221839,57840.0,57839.0,0.29386407]
[1725505178521,0.000816,57840.0,57839.0,0.29386407]
[1725505178748,0.000816,57840.0,57839.0,0.29732157]
[1725505178922,0.000816,57840.0,57839.0,0.29386407]
[1725505179372,0.000816,57840.0,57839.0,0.41834662]
[1725505179701,0.000816,57840.0,57839.0,0.90244862]
[1725505180542,0.000816,57840.0,57839.0,0.98009952]
[1725505180746,0.000816,57840.0,57839.0,1.28634078]
[1725505180968,0.000816,57840.0,57839.0,0.66039762]
[1725505181150,0.000816,57840.0,57839.0,1.12202587]
[1725505181379,0.000816,57840.0,57839.0,1.04429344]
[1725505181583,0.000816,57840.0,57839.0,1.1220371]
[1725505182347,0.000816,57840.0,57839.0,1.41576261]
[1725505182547,0.000816,57840.0,57839.0,1.04429344]
[1725505182754,0.000816,57840.0,57839.0,1.17389129]
[1725505185387,0.000816,57840.0,57839.0,1.04429344]
[1725505189782,0.242023,57846.0,57839.0,0.92326844]
[1725505189995,0.121014,57845.0,57844.0,0.01776]
[1725505190418,0.121014,57845.0,57844.0,0.03544081]
[1725505191716,0.121014,57845.0,57844.0,0.03744081]
[1725505191918,0.221014,57845.0,57844.0,0.04744081]
[1725505192380,0.221014,57845.0,57844.0,0.04844081]
[1725505192582,0.221014,57845.0,57844.0,0.04744081]
[1725505192833,0.1,57845.0,57844.0,0.04744081]
[1725505193035,0.101,57845.0,57844.0,0.05444081]
[1725505193355,0.101,57845.0,57844.0,0.10631781]
[1725505193557,0.101,57845.0,57844.0,0.10431781]
[1725505193991,0.102815,57845.0,57844.0,0.11231781]
[1725505194951,0.102815,57845.0,57844.0,0.23411781]
[1725505195589,0.102815,57845.0,57844.0,0.18224081]
[1725505195957,0.102815,57845.0,57844.0,0.23412024]
[1725505197071,0.102815,57845.0,57844.0,0.18224081]
[1725505198364,0.002815,57845.0,57844.0,0.18224081]
[1725505199903,0.002815,57845.0,57844.0,0.56613801]
[1725505200302,0.002815,57845.0,57844.0,0.64312112]
[1725505200506,0.123828,57845.0,57844.0,0.64312112]
[1725505200713,1.05837048,57845.0,57844.0,0.05961081]
[1725505200915,1.04414448,57845.0,57844.0,0.05961081]
[1725505201118,0.91804448,57845.0,57844.0,0.05961081]
[1725505201314,1.16007048,57845.0,57844.0,0.05961081]
[1725505201716,0.92034448,57845.0,57844.0,0.04461081]
[1725505202106,0.92034448,57845.0,57844.0,0.04761081]
[1725505202351,0.92034448,57845.0,57844.0,0.04661081]
[1725505202780,1.16537048,57845.0,57844.0,0.04661081]
[1725505203195,1.16533048,57845.0,57844.0,0.04661081]
[1725505203403,1.16533048,57845.0,57844.0,0.04461081]
[1725505203613,1.16733048,57845.0,57844.0,0.04461081]
[1725505204021,0.81384,57845.0,57844.0,0.04461081]
[1725505204247,0.100775,57845.0,57844.0,0.32909214]
[1725505204449,0.222788,57845.0,57844.0,0.66710747]
[1725505204662,0.222788,57845.0,57844.0,0.66210747]
[1725505204859,0.101775,57845.0,57844.0,0.66710747]
[1725505205076,0.100775,57845.0,57844.0,0.66110747]
[1725505205289,0.101775,57845.0,57844.0,0.66410747]
[1725505205510,0.101775,57845.0,57844.0,0.66573747]
[1725505205720,0.223788,57845.0,57844.0,0.67273747]
[1725505205975,0.223788,57845.0,57844.0,0.65185121]
[1725505206758,0.465814,57845.0,57844.0,0.13905455]
[1725505206963,0.70784,57845.0,57844.0,0.11312029]
[1725505207793,0.81274,57845.0,57844.0,0.06124081]
[1725505210192,1.054766,57845.0,57844.0,0.06124081]
[1725505210896,0.949866,57845.0,57844.0,0.06124081]
[1725505211098,0.949866,57845.0,57844.0,0.23662029]
[1725505212327,1.049766,57845.0,57844.0,0.06124081]
[1725505213062,1.291792,57845.0,57844.0,0.04431081]
[1725505213322,1.314792,57845.0,57844.0,0.03431081]
[1725505213735,1.556818,57845.0,57844.0,0.03431081]
[1725505214230,1.95536052,57845.0,57844.0,0.02631081]
[1725505214469,1.95436052,57845.0,57844.0,0.01931081]
[1725505214692,2.00003017,57845.0,57844.0,0.01931081]
[1725505214934,2.04265189,57845.0,57844.0,0.01931081]
[1725505215199,2.04465189,57845.0,57844.0,0.01931081]
[1725505215434,2.08986451,57845.0,57844.0,0.01931081]
[1725505216167,2.00657314,57845.0,57844.0,0.01931081]
[1725505216400,1.76454714,57845.0,57844.0,0.01931081]
[1725505217091,1.09997862,57845.0,57844.0,0.01931081]
[1725505217319,1.07286328,57845.0,57844.0,0.02931081]
[1725505218523,1.06886328,57845.0,57844.0,0.02931081]
[1725505219033,0.96996328,57845.0,57844.0,0.02931081]
[1725505219478,0.97296328,57845.0,57844.0,0.02931081]
[1725505220172,0.96996328,57845.0,57844.0,0.02931081]
[1725505220404,0.97096328,57845.0,57844.0,0.02931081]
[1725505220881,0.96596328,57845.0,57844.0,0.02931081]
[1725505221606,0.96796328,57845.0,57844.0,0.02931081]
[1725505221837,0.96596328,57845.0,57844.0,0.01931081]
[1725505222053,0.96596328,57845.0,57844.0,0.02131081]
[1725505222283,1.43788928,57845.0,57844.0,0.02331081]
[1725505222505,1.46088928,57845.0,57844.0,0.02331081]
[1725505223272,1.20019298,57845.0,57844.0,0.02131081]
[1725505223523,1.32320598,57845.0,57844.0,0.02131081]
[1725505223780,0.95227998,57845.0,57844.0,0.01931081]
[1725505224501,0.95527998,57845.0,57844.0,0.01931081]
[1725505224738,0.95227998,57845.0,57844.0,0.01931081]
[1725505224971,1.19430598,57845.0,57844.0,0.01931081]
[1725505225311,0.95327998,57845.0,57844.0,0.01931081]
[1725505225512,1.05327998,57845.0,57844.0,0.01931081]
[1725505225737,1.05527998,57845.0,57844.0,0.01931081]
[1725505226668,1.05227998,57845.0,57844.0,0.01931081]
[1725505227108,1.05027998,57845.0,57844.0,0.01931081]
[1725505227329,1.05327998,57845.0,57844.0,0.01931081]
[1725505227556,1.05127998,57845.0,57844.0,0.01931081]
[1725505227804,1.32041959,57845.0,57844.0,0.01931081]
[1725505228131,1.32341959,57845.0,57844.0,0.01931081]
[1725505228368,1.32041959,57845.0,57844.0,0.01931081]
[1725505228595,1.32141959,57845.0,57844.0,0.01931081]
[1725505228822,1.32141959,57845.0,57844.0,0.02031081]
[1725505229521,1.32141959,57845.0,57844.0,0.01931081]
[1725505229766,1.32241959,57845.0,57844.0,0.01931081]
[1725505230186,1.32223459,57845.0,57844.0,0.01931081]
[1725505230457,1.32123459,57845.0,57844.0,0.01931081]
[1725505230688,1.32323459,57845.0,57844.0,0.01931081]
[1725505231602,1.32123459,57845.0,57844.0,0.01931081]
[1725505232070,1.32323459,57845.0,57844.0,0.01931081]
[1725505232296,1.73963024,57845.0,57844.0,0.01931081]
[1725505232760,1.74163024,57845.0,57844.0,0.01931081]
[1725505233509,1.60260052,57840.0,57839.0,0.00163]
[1725505233737,1.82820052,57840.0,57839.0,0.00163]
[1725505235168,1.84120052,57840.0,57839.0,0.00263]
[1725505235381,1.59915352,57840.0,57839.0,0.00263]
[1725505235619,1.5858942,57840.0,57839.0,0.00163]
[1725505236736,1.5948942,57840.0,57839.0,0.00263]
[1725505237013,1.63140436,57840.0,57839.0,0.00363]
[1725505237238,1.62040436,57840.0,57839.0,0.00263]
[1725505237720,1.62740436,57840.0,57839.0,0.00363]
[1725505237964,1.61840436,57840.0,57839.0,0.00263]
[1725505239127,1.62340436,57840.0,57839.0,0.00363]
[1725505240533,1.61140436,57840.0,57839.0,0.00163]
[1725505241040,1.52080436,57840.0,57839.0,0.00263]
[1725505242235,1.48759268,57840.0,57839.0,0.00263]
[1725505242465,1.49259268,57840.0,57839.0,0.00363]
[1725505243429,1.49259268,57840.0,57839.0,0.23463]
[1725505245066,1.49259268,57840.0,57839.0,0.13223]
[1725505246212,1.59349268,57840.0,57839.0,0.00363]
[1725505248022,1.83553968,57840.0,57839.0,0.00363]
[1725505248699,1.59349268,57840.0,57839.0,0.00363]
[1725505248915,1.32215016,57840.0,57839.0,0.00363]
[1725505249120,1.59349268,57840.0,57839.0,0.00363]
[1725505251241,1.49259268,57840.0,57839.0,0.00363]
[1725505252980,1.59349268,57840.0,57839.0,0.00363]
[1725505253217,1.63616233,57840.0,57839.0,0.00363]
[1725505253457,1.87820933,57840.0,57839.0,0.00363]
[1725505253679,1.88020933,57840.0,57839.0,0.00363]
[1725505253906,1.63816233,57840.0,57839.0,0.00363]
[1725505254157,1.88020933,57840.0,57839.0,0.00363]
[1725505254378,1.63897733,57840.0,57839.0,0.00363]
[1725505254862,1.63897733,57840.0,57833.0,0.001632]
[1725505254863,1.46263652,57834.0,57833.0,0.001632]
[1725505255134,1.56263652,57834.0,57833.0,0.001632]
[1725505255345,1.82770852,57834.0,57833.0,0.001632]
[1725505255558,1.8458058,57834.0,57833.0,0.001632]
[1725505256680,1.8568058,57834.0,57833.0,0.001632]
[1725505256939,1.8558058,57834.0,57833.0,0.002632]
[1725505257184,1.090619,57822.0,57819.0,0.001632]
[1725505257403,1.192219,57822.0,57819.0,0.001632]
[1725505257655,1.292219,57822.0,57819.0,0.001632]
[1725505257876,1.34234257,57822.0,57819.0,0.001632]
[1725505258151,1.70736457,57822.0,57819.0,0.001632]
[1725505258368,1.36302152,57815.0,57814.0,0.00164]
[1725505258601,1.80677252,57815.0,57814.0,0.00164]
[1725505258869,2.07192352,57815.0,57814.0,0.00164]
[1725505259055,2.06992352,57815.0,57814.0,0.00164]
[1725505259301,2.09705229,57815.0,57814.0,0.00164]
[1725505260212,2.10005229,57815.0,57814.0,0.00164]
[1725505260435,2.10205229,57815.0,57814.0,0.00164]
[1725505260663,2.10005229,57815.0,57814.0,0.00164]
[1725505261125,1.85790129,57815.0,57814.0,0.00164]
[1725505262046,1.88662593,57815.0,57814.0,0.00164]
[1725505263183,1.88662593,57815.0,57814.0,0.0016]
[1725505265518,1.54287493,57815.0,57814.0,0.1211]
[1725505265840,1.54287493,57815.0,57814.0,0.0016]
[1725505268008,1.78502593,57815.0,57814.0,0.0016]
[1725505268219,1.54287493,57815.0,57814.0,0.0016]
[1725505268630,1.78502593,57815.0,57814.0,0.0016]
[1725505268840,1.95371493,57815.0,57814.0,0.0016]
[1725505269728,1.95371493,57815.0,57780.0,0.0003]
[1725505269729,0.2173,57799.0,57780.0,0.0003]
[1725505269956,0.5,57800.0,57771.0,0.51083615]
[1725505269957,0.121165,57772.0,57771.0,0.51083615]
[1725505270189,0.121165,57772.0,57763.0,0.0110874]
[1725505270190,0.363547,57764.0,57763.0,0.0110874]
[1725505270421,0.94755452,57764.0,57763.0,0.0110874]
[1725505270645,1.84881509,57764.0,57763.0,0.0110874]
[1725505270868,1.86998237,57764.0,57763.0,0.0110874]
[1725505271083,1.62561737,57764.0,57763.0,0.0110874]
[1725505271318,1.62561737,57764.0,57730.0,0.04268509]
[1725505271319,0.02,57731.0,57730.0,0.04268509]
[1725505271557,0.463756,57731.0,57730.0,0.1324]
[1725505271807,0.01,57736.0,57730.0,0.1324]
[1725505272036,0.1457574,57743.0,57734.0,0.2584]
[1725505272269,0.1457574,57743.0,57740.0,0.2364]
[1725505272499,0.1457574,57743.0,57742.0,0.121228]
[1725505272742,0.1,57753.0,57745.0,0.121222]
[1725505272994,0.01,57756.0,57746.0,0.348119]
[1725505273240,0.01,57756.0,57746.0,0.2269]
[1725505273241,0.1,57755.0,57746.0,0.2269]
[1725505273472,0.131218,57747.0,57746.0,0.2269]
[1725505273712,0.01,57747.0,57746.0,0.2269]
[1725505274217,0.131218,57747.0,57746.0,0.2269]
[1725505274449,0.231218,57747.0,57746.0,0.2269]
[1725505274906,0.1,57747.0,57746.0,0.2269]
[1725505275155,0.1,57755.0,57748.0,0.1222]
[1725505275699,0.01,57757.0,57747.0,0.1027]
[1725505275700,0.1,57757.0,57747.0,0.1027]
[1725505275937,0.01,57760.0,57752.0,0.121206]
[1725505276167,0.121194,57759.0,57750.0,0.121211]
[1725505276400,0.121194,57759.0,57747.0,0.1027]
[1725505276401,0.001,57755.0,57747.0,0.1037]
[1725505276667,0.001,57755.0,57750.0,0.002]
[1725505276958,0.001,57755.0,57754.0,0.121203]
[1725505277214,0.001,57755.0,57753.0,0.121204]
[1725505277678,0.121191,57760.0,57753.0,0.121204]
[1725505277936,0.001,57760.0,57755.0,0.121199]
[1725505278167,0.121199,57757.0,57752.0,0.05155248]
[1725505278418,0.121199,57757.0,57741.0,0.242459]
[1725505278419,0.01,57757.0,57748.0,0.001632]
[1725505278645,0.121207,57752.0,57751.0,0.1265]
[1725505279385,0.121204,57754.0,57751.0,0.1265]
[1725505279616,0.121204,57754.0,57752.0,0.1028]
[1725505279847,0.001,57755.0,57752.0,0.1028]
[1725505280084,0.122201,57755.0,57752.0,0.1028]
[1725505280311,0.121201,57755.0,57752.0,0.1028]
[1725505280539,0.252381,57761.0,57752.0,0.1028]
[1725505280777,0.001,57754.0,57752.0,0.1028]
[1725505281010,0.121194,57759.0,57753.0,0.121205]
[1725505281252,0.001,57755.0,57752.0,0.1048]
[1725505281478,0.121205,57753.0,57752.0,0.1048]
[1725505281708,0.363616,57753.0,57752.0,0.1048]
[1725505282163,0.121205,57753.0,57752.0,0.1048]
[1725505282391,0.252395,57757.0,57752.0,0.1048]
[1725505282614,0.01,57757.0,57752.0,0.1048]
[1725505282858,0.01,57758.0,57752.0,0.1048]
[1725505283115,0.121196,57758.0,57752.0,0.1048]
[1725505283379,0.121196,57758.0,57752.0,0.1028]
[1725505283847,0.1,57761.0,57754.0,0.39664252]
[1725505284093,0.002,57761.0,57758.0,0.121194]
[1725505284319,0.01,57763.0,57758.0,0.121193]
[1725505284320,0.11,57763.0,57758.0,0.121193]
[1725505284540,0.11,57763.0,57758.0,0.120193]
[1725505284778,0.11,57763.0,57758.0,0.121195]
[1725505285467,0.231186,57763.0,57757.0,0.121196]
[1725505285721,0.1,57763.0,57756.0,0.242397]
[1725505285942,0.131183,57764.0,57758.0,0.121195]
[1725505286166,0.1,57766.0,57756.0,0.242397]
[1725505286167,0.1,57763.0,57756.0,0.242397]
[1725505286393,0.01,57764.0,57760.0,0.121191]
[1725505286653,0.01,57764.0,57758.0,0.121193]
[1725505286876,0.01,57764.0,57759.0,0.121191]
[1725505287136,0.01,57764.0,57757.0,0.121196]
[1725505287368,0.01,57764.0,57754.0,0.39664252]
[1725505287369,0.121189,57761.0,57754.0,0.1253]
[1725505287604,0.121189,57761.0,57756.0,0.002]
[1725505287605,0.1,57760.0,57756.0,0.002]
[1725505287840,0.1,57760.0,57756.0,0.121199]
[1725505288061,0.221191,57760.0,57754.0,0.246503]
[1725505288278,0.221191,57760.0,57755.0,0.121201]
[1725505288728,0.101,57760.0,57756.0,0.002]
[1725505288958,0.102,57760.0,57756.0,0.002]
[1725505289191,0.102,57760.0,57756.0,0.123199]
[1725505289419,0.101,57760.0,57756.0,0.123199]
[1725505289688,0.101,57760.0,57757.0,0.121197]
[1725505289914,0.001,57760.0,57757.0,0.121197]
[1725505290140,0.1,57762.0,57758.0,0.121194]
[1725505290378,0.1,57762.0,57759.0,0.00346231]
[1725505290612,0.001,57760.0,57759.0,0.63492052]
[1725505290852,0.000817,57764.0,57763.0,0.607922]
[1725505291095,0.000817,57764.0,57763.0,1.49649019]
[1725505291328,0.000817,57764.0,57763.0,1.59799504]
[1725505291561,0.000817,57764.0,57763.0,1.62352681]
[1725505291788,0.000817,57764.0,57763.0,1.59702473]
[1725505292001,0.000817,57764.0,57763.0,1.32568204]
[1725505292245,0.000817,57764.0,57763.0,1.22114767]
[1725505292467,0.118715,57772.0,57766.0,0.121177]
[1725505292691,0.01,57775.0,57771.0,0.05128661]
[1725505292919,0.121165,57772.0,57771.0,0.05128661]
[1725505293145,0.1,57772.0,57771.0,0.05128661]
[1725505293359,0.221165,57772.0,57771.0,0.05128661]
[1725505293585,0.1,57772.0,57771.0,0.05128661]
[1725505293802,0.01,57775.0,57772.0,0.2263]
[1725505293803,0.1,57773.0,57772.0,0.2263]
[1725505294021,0.1,57773.0,57772.0,0.30325737]
[1725505294459,0.01,57777.0,57772.0,0.30325737]
[1725505294460,0.01,57778.0,57772.0,0.68762375]
[1725505294678,0.02,57798.0,57772.0,0.68762375]
[1725505294679,0.1,57775.0,57773.0,0.08045143]
[1725505294909,0.121149,57780.0,57775.0,0.121158]
[1725505295126,0.131149,57780.0,57777.0,0.05132585]
[1725505295346,0.1,57779.0,57777.0,0.05132585]
[1725505295812,0.221151,57779.0,57777.0,0.05132585]
[1725505296024,0.1,57779.0,57778.0,0.05132585]
[1725505296471,0.1,57779.0,57774.0,0.34489523]
[1725505296472,0.1,57779.0,57777.0,0.07699005]
[1725505296687,0.1,57779.0,57778.0,0.121153]
[1725505296902,0.1,57784.0,57778.0,0.72922932]
[1725505297126,0.1,57782.0,57781.0,0.07704697]
[1725505297371,0.221141,57784.0,57781.0,0.38435009]
[1725505297582,0.221141,57784.0,57783.0,0.07709493]
[1725505297793,0.121142,57783.0,57782.0,0.10257323]
[1725505298001,0.121142,57783.0,57782.0,0.48687738]
[1725505298002,0.221142,57783.0,57782.0,0.48687738]
[1725505298205,0.221142,57783.0,57782.0,0.46141042]
[1725505298417,0.221142,57783.0,57782.0,0.38430415]
[1725505298893,0.1,57783.0,57782.0,0.38430415]
[1725505299319,0.02714078,57796.0,57782.0,0.48300415]
[1725505299534,0.02714078,57796.0,57786.0,0.05146297]
[1725505299761,0.121134,57787.0,57786.0,0.05046297]
[1725505299996,0.12114,57784.0,57783.0,0.07719445]
[1725505300199,0.121139,57785.0,57783.0,0.07719445]
[1725505300412,0.12114,57784.0,57782.0,0.1047]
[1725505300619,0.121138,57786.0,57783.0,0.38430403]
[1725505300830,0.242268,57788.0,57784.0,0.07724759]
[1725505301047,0.121134,57787.0,57786.0,0.001]
[1725505301262,0.121138,57785.0,57784.0,0.07724759]
[1725505301467,0.121138,57785.0,57784.0,0.46155072]
[1725505301680,0.121138,57785.0,57784.0,0.46055072]
[1725505301885,0.121137,57786.0,57784.0,0.38430313]
[1725505302098,0.121137,57786.0,57785.0,0.38430313]
[1725505302319,0.221137,57786.0,57785.0,0.38430313]
[1725505302794,0.705683,57786.0,57785.0,0.38430313]
[1725505303007,0.121142,57783.0,57782.0,0.20157521]
[1725505303223,0.121142,57783.0,57782.0,0.48800729]
[1725505303650,0.121142,57783.0,57782.0,0.48300729]
[1725505304525,0.122142,57783.0,57782.0,0.48900729]
[1725505304734,0.364427,57783.0,57782.0,0.48900729]
[1725505305414,0.365427,57783.0,57782.0,0.1107]
[1725505308312,1.091482,57783.0,57782.0,0.012]
[1725505308527,1.26744135,57783.0,57782.0,0.012]
[1725505308738,1.214482,57783.0,57782.0,0.012]
[1725505310234,1.26744135,57783.0,57782.0,0.012]
[1725505311423,0.972197,57783.0,57782.0,0.012]
[1725505312482,0.464627,57783.0,57782.0,0.012]
[1725505312712,0.706912,57783.0,57782.0,0.012]
[1725505313413,0.222342,57783.0,57782.0,0.012]
[1725505313628,0.223142,57783.0,57782.0,0.012]
[1725505313861,0.365427,57783.0,57782.0,0.012]
[1725505314319,0.365427,57783.0,57782.0,0.013632]
[1725505315432,0.465427,57783.0,57782.0,0.013632]
[1725505316406,0.58457,57783.0,57782.0,0.013632]
[1725505316619,0.970997,57783.0,57782.0,0.013632]
[1725505317284,0.99697317,57783.0,57782.0,0.013632]
[1725505318718,0.97397317,57783.0,57782.0,0.013632]
[1725505318939,0.705712,57783.0,57782.0,0.013632]
[1725505319164,0.605712,57783.0,57782.0,0.013632]
[1725505321364,0.705712,57783.0,57782.0,0.013632]
[1725505321575,1.00095635,57783.0,57782.0,0.013632]
[1725505321788,0.947997,57783.0,57782.0,0.013632]
[1725505322023,0.463427,57783.0,57782.0,0.013632]
[1725505324187,0.705712,57783.0,57782.0,0.013632]
[1725505324397,0.75867135,57783.0,57782.0,0.013632]
[1725505324651,0.78167135,57783.0,57782.0,0.013632]
[1725505324867,1.12545635,57783.0,57782.0,0.013632]
[1725505325079,1.15259757,57783.0,57782.0,0.013632]
[1725505325547,1.12545635,57783.0,57782.0,0.013632]
[1725505325786,1.072497,57783.0,57782.0,0.013632]
[1725505326059,0.970997,57783.0,57782.0,0.013632]
[1725505326514,1.02395635,57783.0,57782.0,0.013632]
[1725505327398,1.02477235,57783.0,57782.0,0.013632]
[1725505327628,1.12827235,57783.0,57782.0,0.013632]
[1725505328091,1.50145735,57783.0,57782.0,0.013632]
[1725505328530,1.74374235,57783.0,57782.0,0.013632]
[1725505328738,1.74574235,57783.0,57782.0,0.013632]
[1725505328968,1.50145735,57783.0,57782.0,0.013632]
[1725505329174,2.01548766,57783.0,57782.0,0.013632]
[1725505329830,2.01548766,57783.0,57782.0,0.007632]
[1725505330031,1.77320266,57783.0,57782.0,0.007632]
[1725505330260,1.77820266,57783.0,57782.0,0.007632]
[1725505330674,1.77820266,57783.0,57782.0,0.001632]
[1725505330886,1.78320266,57783.0,57782.0,0.002632]
[1725505332259,2.02548766,57783.0,57782.0,0.002632]
[1725505332465,1.78320266,57783.0,57782.0,0.002632]
[1725505332890,2.02548766,57783.0,57782.0,0.002632]
[1725505334200,2.02748766,57783.0,57782.0,0.002632]
[1725505334430,1.78320266,57783.0,57782.0,0.002632]
[1725505336690,1.62930266,57783.0,57782.0,0.002632]
[1725505336903,1.52580266,57783.0,57782.0,0.002632]
[1725505338029,1.54880266,57783.0,57782.0,0.002632]
[1725505339100,1.68080266,57783.0,57782.0,0.002632]
[1725505344583,1.54880266,57783.0,57782.0,0.002632]
[1725505346091,1.72229168,57783.0,57782.0,0.002632]
[1725505346312,1.83099168,57783.0,57782.0,0.002632]
[1725505346522,1.78950266,57783.0,57782.0,0.002632]
[1725505346777,2.02978766,57783.0,57782.0,0.002632]
[1725505346993,2.03178766,57783.0,57782.0,0.002632]
[1725505348981,2.07327668,57783.0,57782.0,0.002632]
[1725505350290,2.14271068,57783.0,57782.0,0.002632]
[1725505352237,0.84819,57770.0,57769.0,0.1373]
[1725505352445,1.24293531,57770.0,57769.0,0.1373]
[1725505352651,1.48527531,57770.0,57769.0,0.15683293]
[1725505352855,1.48527531,57770.0,57769.0,0.1373]
[1725505353802,1.48627531,57770.0,57769.0,0.1473]
[1725505354220,1.48727531,57770.0,57769.0,0.1573]
[1725505355820,1.51304141,57770.0,57769.0,0.1573]
[1725505358493,0.7336161,57770.0,57769.0,0.2623]
[1725505358715,0.46551,57770.0,57769.0,0.2623]
[1725505358956,0.102,57770.0,57769.0,0.28183293]
[1725505359192,0.002,57770.0,57769.0,0.45490118]
[1725505359405,0.002,57770.0,57769.0,0.33372918]
[1725505359636,0.002,57770.0,57769.0,0.28183293]
[1725505359862,0.12317,57770.0,57769.0,0.33372402]
[1725505360090,0.002,57770.0,57769.0,0.33372402]
[1725505360323,0.002,57770.0,57769.0,0.40300493]
[1725505361476,0.002,57770.0,57769.0,0.69725665]
[1725505362361,0.002,57770.0,57769.0,1.02971041]
[1725505362815,0.002,57770.0,57769.0,1.10919975]
[1725505363680,0.002,57770.0,57769.0,1.10920636]
[1725505363936,0.002,57770.0,57769.0,1.13515928]
[1725505364169,0.002,57770.0,57769.0,1.27369162]
[1725505364857,0.002,57770.0,57769.0,1.37749812]
[1725505366123,0.002,57770.0,57769.0,1.27369162]
[1725505367461,0.002,57770.0,57769.0,1.4034562]
[1725505367690,0.002,57770.0,57769.0,1.27369162]
[1725505367921,0.002,57770.0,57769.0,1.03134762]
[1725505368145,0.002,57770.0,57769.0,0.66783162]
[1725505368367,0.002,57770.0,57769.0,0.74568851]
[1725505368641,0.002,57770.0,57769.0,0.36132182]
[1725505368873,0.002,57770.0,57769.0,0.36132788]
[1725505369098,0.002,57770.0,57769.0,0.48249988]
[1725505369546,0.002,57770.0,57769.0,0.8668717]
[1725505369988,0.002,57770.0,57769.0,0.7456997]
[1725505370231,0.002,57770.0,57769.0,0.8668717]
[1725505370456,0.002,57770.0,57769.0,0.78900875]
[1725505370679,0.002,57770.0,57769.0,0.66783675]
[1725505371131,0.002,57770.0,57769.0,0.74570872]
[1725505371581,0.002,57770.0,57769.0,0.3613369]
[1725505371765,0.002,57770.0,57769.0,0.86688011]
[1725505371981,0.002,57770.0,57769.0,0.78900814]
[1725505372484,0.002,57770.0,57769.0,0.66783614]
[1725505373382,0.002,57770.0,57769.0,0.74569664]
[1725505374905,0.002,57770.0,57769.0,0.86686864]
[1725505375575,0.002,57770.0,57769.0,1.37750112]
[1725505375798,0.002,57770.0,57769.0,1.27569614]
[1725505376503,0.002,57770.0,57769.0,1.27369614]
[1725505376728,0.001,57770.0,57769.0,1.26369614]
[1725505376943,0.002,57770.0,57769.0,1.03235214]
[1725505377152,0.001,57770.0,57769.0,1.02235214]
[1725505377362,0.002,57770.0,57769.0,1.13915048]
[1725505377594,0.002,57770.0,57769.0,0.89680648]
[1725505378265,0.002,57770.0,57769.0,1.13915048]
[1725505379137,0.002,57770.0,57769.0,1.13913146]
[1725505379589,0.002,57770.0,57769.0,1.0353352]
[1725505380799,0.1,57777.0,57770.0,0.121168]
[1725505381028,0.121162,57774.0,57770.0,0.17306776]
[1725505381248,0.121162,57774.0,57771.0,0.01952049]
[1725505381470,0.121159,57776.0,57772.0,0.121165]
[1725505381943,0.121159,57776.0,57773.0,0.01950805]
[1725505382167,0.121159,57776.0,57774.0,0.1352]
[1725505382378,0.121159,57775.0,57774.0,0.1352]
[1725505382638,0.121157,57776.0,57774.0,0.1352]
[1725505382864,0.121159,57775.0,57774.0,0.1352]
[1725505383083,0.363478,57775.0,57774.0,0.1352]
[1725505383539,0.605797,57775.0,57774.0,0.1352]
[1725505384017,0.36349,57773.0,57772.0,0.007]
[1725505384247,0.242327,57773.0,57769.0,0.15853176]
[1725505384474,0.36349,57773.0,57772.0,0.01951427]
[1725505384707,0.121168,57771.0,57769.0,0.15853176]
[1725505385812,0.121168,57771.0,57769.0,0.17253176]
[1725505386035,0.121168,57771.0,57769.0,0.120632]
[1725505386258,0.12117,57770.0,57769.0,0.120632]
[1725505386698,0.244327,57773.0,57769.0,0.120632]
[1725505386699,0.121168,57771.0,57769.0,0.120632]
[1725505387140,0.122168,57771.0,57769.0,0.134632]
[1725505387361,0.123168,57771.0,57769.0,0.134632]
[1725505387576,0.121168,57771.0,57769.0,0.106632]
[1725505387832,0.001,57770.0,57769.0,0.120632]
[1725505388509,0.122168,57771.0,57769.0,0.120632]
[1725505388734,0.123168,57771.0,57769.0,0.120632]
[1725505388996,0.84819,57770.0,57769.0,0.015632]
[1725505389216,1.13284935,57770.0,57769.0,0.015632]
[1725505389448,1.07989,57770.0,57769.0,0.015632]
[1725505390118,1.08089,57770.0,57769.0,0.015632]
[1725505390341,1.10514821,57770.0,57769.0,0.001632]
[1725505390561,1.10614821,57770.0,57769.0,0.015632]
[1725505390791,1.10714821,57770.0,57769.0,0.023632]
[1725505391017,1.10614821,57770.0,57769.0,0.009632]
[1725505391462,1.10714821,57770.0,57769.0,0.017632]
[1725505392614,0.98597821,57770.0,57769.0,0.017632]
[1725505392840,1.10714821,57770.0,57769.0,0.017632]
[1725505393728,1.04846546,57770.0,57769.0,0.017632]
[1725505394616,1.05052437,57770.0,57769.0,0.017632]
[1725505395539,0.49076821,57770.0,57769.0,0.017632]
[1725505395762,0.46551,57770.0,57769.0,0.017632]
[1725505396007,0.46551,57770.0,57769.0,0.04693139]
[1725505396702,0.70785,57770.0,57769.0,0.04693139]
[1725505397126,0.70785,57770.0,57769.0,0.017632]
[1725505397358,0.46551,57770.0,57769.0,0.017632]
[1725505398223,0.22317,57770.0,57769.0,0.017632]
[1725505398445,0.46551,57770.0,57769.0,0.017632]
[1725505398674,0.46551,57770.0,57769.0,0.149932]
[1725505398675,0.102,57770.0,57769.0,0.149932]
[1725505398884,0.002,57770.0,57769.0,0.28953139]
[1725505401806,0.37174531,57777.0,57769.0,0.28953139]
[1725505401807,0.40814531,57788.0,57776.0,0.121156]
[1725505402034,0.7979,57792.0,57778.0,0.1103]
[1725505402035,0.363453,57779.0,57778.0,0.1103]
[1725505402471,0.605755,57779.0,57778.0,0.13951545]
[1725505402706,0.121158,57776.0,57773.0,0.2426]
[1725505402936,0.24231,57778.0,57773.0,0.2426]
[1725505403184,0.121156,57777.0,57774.0,0.02925275]
[1725505403398,0.121158,57776.0,57774.0,0.02925275]
[1725505403622,0.24231,57778.0,57774.0,0.02925275]